Cogmind - Beta 13 @@@ ROGUE MODE // 2024.05.06 @ 03:48:16 Player: Toa of Guts Result: Destroyed by X-57 Shotgunner with High-powered Shotgun Performance ------------- Evolutions (3) 1500 Regions Visited (4) 800 Robots Destroyed (73) 365 Value Destroyed (2268) 2268 Prototype IDs (1) 20 Alien Tech Used (0) 0 Bonus (0) 0 TOTAL SCORE: 4953 Bonus ------- None Cogmind --------- Core Integrity 0/700 Matter 113/300 Energy 71/100 System Corruption 10% Temperature Cool (0) Movement Core (400) Ox7 Location -7/Factory Parts ------- > --- POWER (1) -------- (None) > --- PROPULSION (4) --- (None) > --- UTILITY (5) ------ Large Storage Unit Advanced Visual Processing Unit > --- WEAPON (3) ------- Katana > --- INVENTORY (15) --- Light Nuclear Core Light Nuclear Core High-capacity Matter Pod (200) Recalibrator Improved Datajack Peak State ------------ > --- POWER ------------ Reinforced Deuterium Engine > --- PROPULSION ------- Improved Treads Improved Treads Improved Treads Medium Treads > --- UTILITY ---------- Large Storage Unit Advanced Visual Processing Unit Seismic Detector Improved Light Armor Plating Improved Light Armor Plating > --- WEAPON ----------- Katana Greatsword > --- INVENTORY -------- Light Nuclear Core Light Nuclear Core Improved Deuterium Engine Improved Treads Subdweller Monowheel High-capacity Matter Pod Recalibrator Heavy Laser Gauss Rifle Gauss Rifle Gauss Cannon Mini Grenade Launcher Mini Grenade Launcher Improved Datajack [Rating: 40] Favorites ----------- Power Ion Engine Engine Ion Engine Power Core Light Nuclear Core Propulsion Improved Treads Treads Improved Treads Leg Aluminum Leg Wheel Subdweller Monowheel Utility Large Storage Unit Device Seismic Detector Storage Large Storage Unit Processor Targeting Computer Protection Hardened Medium Armor Plating Weapon Light Assault Rifle Energy Gun Beam Rifle Ballistic Gun Light Assault Rifle Ballistic Cannon Gauss Cannon Launcher Mini Grenade Launcher Special Weapon Mining Laser Slashing Weapon Katana Special Melee Weapon Improved Datajack Build | -11 -10 -10 -8 -7 ------- Run | Yrd Mat Sub Mat Fac Slots Evolved 6 | . . . 4 2 Power . | . . . . . Propulsion 2 | . . . 1 1 Utility 3 | . . . 2 1 Weapon 1 | . . . 1 . Parts Attached 89 | 6 12 16 25 30 Power 6 | 1 1 1 1 2 Engine 5 | 1 1 1 . 2 Core 1 | . . . 1 . Reactor . | . . . . . Propulsion 14 | 2 4 2 1 5 Treads 11 | . 4 2 1 4 Leg 2 | 2 . . . . Wheel 1 | . . . . 1 Hover . | . . . . . Flight . | . . . . . Utility 16 | 1 2 . 7 6 Device 1 | . . . . 1 Storage 4 | 1 1 . 2 . Processor 2 | . 1 . . 1 Hackware . | . . . . . Protection 9 | . . . 5 4 Artifact . | . . . . . Weapon 53 | 2 5 13 16 17 Energy Gun 7 | 1 1 2 1 2 Energy Cannon . | . . . . . Ballistic Gun 26 | 1 3 7 9 6 Ballistic Cannon 2 | . . . 1 1 Launcher 10 | . 1 3 2 4 Special Weapon 1 | . . 1 . . Impact Weapon . | . . . . . Slashing Weapon 6 | . . . 2 4 Piercing Weapon . | . . . . . Special Melee Weapon 1 | . . . 1 . Unidentified Prototypes 1 | . . . . 1 Parts Lost 29 | . . 4 2 23 Power 3 | . . 1 . 2 Propulsion 8 | . . 1 . 7 Utility 7 | . . . 1 6 Weapon 11 | . . 2 1 8 Highest Loss Streak 14 | . . 2 1 14 To Critical Strikes . | . . . . . Average Slot Usage (%) 95 | . 97 99 97 84 Engine 8 | . 14 13 1 6 Core 2 | . . . 7 . Treads 27 | . 27 28 27 25 Storage 11 | . 14 14 9 7 Processor 11 | . 13 14 9 9 Protection 7 | . . . 15 13 Energy Gun 4 | . 2 8 3 3 Ballistic Gun 17 | . 24 14 22 5 Launcher 1 | . . 5 . . Slashing Weapon 1 | . . . . 8 Naked Turns . | . . . . . Heaviest Build 56 | 10 29 33 52 56 Greatest Support 97 | 20 46 46 69 97 Greatest Overweight (x) 2 | 2 . . . 2 Average Overweight (x) . | . . . . . Largest Inventory Capacity 15 | 8 15 15 15 15 Average Capacity 14 | 7 14 15 15 15 Most Carried 15 | 6 15 15 15 15 Average Carried 14 | 4 14 14 14 13 Final Capacity 15 | 8 15 15 15 15 Final Carried 15 | 6 15 15 15 5 Class Distribution -------------------- 66% | Mutant 18% | Scavenger-Tank 5% | Tank 3% | Scavenger-Gunner 3% | Gunner Dominant Class ---------------- Mutant | -10/Materials Mutant | -10/Subcaves Scavenger-Tank | -8/Materials Mutant | -7/Factory Resources | -11 -10 -10 -8 -7 ----------- Run | Yrd Mat Sub Mat Fac Matter Collected 1742 | 260 224 242 615 401 Remotely . | . . . . . Salvage Created 2179 | . 80 260 654 1185 Parts 147 | . 11 18 51 67 Haulers Intercepted 2 | . . . 1 1 Recyclers Shooed 3 | . . . . 3 Parts Field Recycled . | . . . . . Retrieved Matter . | . . . . . Parts Self-Destructed 13 | . . 13 . . Prevented . | . . . . . Kills | -11 -10 -10 -8 -7 ------- Run | Yrd Mat Sub Mat Fac Combat Hostiles Destroyed 54 | . 4 11 17 22 Melee 6 | . . . . 6 Guns 25 | . 1 7 11 6 Cannons 2 | . . . . 2 AOE 21 | . 3 4 6 8 Classes Destroyed 14 | . 3 2 3 6 Worker 2 | . . . 1 1 Builder 5 | . . . . 5 Hauler 2 | . . . 1 1 Recycler 3 | . . . . 3 Watcher 7 | . 2 . 4 1 Swarmer 19 | . 3 5 8 3 Grunt 8 | . 1 . . 7 Brawler 1 | . . . . 1 Protector 1 | . . . . 1 Sentry 10 | . . 1 6 3 Specialist 1 | . . . . 1 Hunter 6 | . . . 3 3 Programmer 3 | . . . . 3 Subdweller 5 | . . 5 . . Best Kill Streak 9 | . 3 4 8 9 Combat Bots Only 5 | . 3 4 5 5 Max Kills in Single Turn 4 | . 2 3 3 4 Gunslinging . | . . . . . Exploded 3 | . 2 3 3 2 Melee 1 | . . . . 1 Uniques/NPCs Destroyed . | . . . . . Combat | -11 -10 -10 -8 -7 -------- Run | Yrd Mat Sub Mat Fac Hostile Shots Fired 520 | . 11 65 75 369 Missed 158 | . 3 25 23 107 Damage Taken 5055 | . 110 739 626 3580 Core 856 | . 16 80 51 709 Absorbed by Shields . | . . . . . Core Remaining (%) 83 | 100 . 61 90 . Volleys Fired 135 | . 9 36 48 42 Largest 3 | . 2 2 3 3 Hottest 125 | . 60 100 104 125 Shots Fired 295 | . 15 59 125 96 Gun 268 | . 13 51 118 86 Cannon 8 | . . . 3 5 Launcher 17 | . 2 6 4 5 Special 2 | . . 2 . . Kinetic 205 | . 11 28 108 58 Thermal 73 | . 2 25 13 33 Explosive 17 | . 2 6 4 5 Electromagnetic . | . . . . . Robot Hit Streak 41 | . 7 41 11 9 Robot Miss Streak 4 | . 2 3 3 4 Penetration Max 1 | . . . . 1 Secondary Targets 2 | . . 1 . 1 Max Gunslinging Chain 1 | . . 1 . 1 Shots Hit Robots 216 | . 9 43 76 88 Core Hits 128 | . 7 18 43 60 Critical Kills . | . . . . . Critical Parts Destroyed 1 | . . 1 . . Critical Strikes 6 | . . 2 . 4 Burn 3 | . . 1 . 2 Destroy 1 | . . 1 . . Sever 2 | . . . . 2 Melee Attacks 39 | . . . 3 36 Impact . | . . . . . Slashing 38 | . . . 2 36 Piercing . | . . . . . Sneak Attacks 1 | . . . . 1 Combat Hostiles . | . . . . . Follow-up Attacks 6 | . . . . 6 Damage Inflicted 6762 | . 315 843 1571 4033 Guns 2982 | . 75 574 980 1353 Cannons 102 | . . . . 102 Explosions 2468 | . 239 269 591 1369 Melee 1209 | . . . . 1209 Ramming 1 | . 1 . . . Kinetic 2222 | . 75 273 864 1010 Thermal 1202 | . . 301 116 785 Explosive 2128 | . 239 269 591 1029 Electromagnetic . | . . . . . Impact . | . . . . . Slashing 1209 | . . . . 1209 Piercing . | . . . . . Highest Corruption 10 | . . . . 10 Average Corruption 2 | . . . . 2 Corruption Purged . | . . . . . Corruption Blocked . | . . . . . Effects 2 | . . . . 2 Energy Discharges 2 | . . . . 2 Overload Shots . | . . . . . Overflow Damage 217 | . 32 . 20 165 Projectiles . | . . . . . Explosions 185 | . 32 . 20 133 Melee 32 | . . . . 32 Knockbacks 1 | . . . . 1 Impact . | . . . . . Kinetic 1 | . . . . 1 Secondary . | . . . . . Self-Inflicted Damage 219 | . 48 54 18 99 Shots 8 | . 2 2 1 3 Rammed 2 | . 2 . . . Targets Rammed 2 | . 2 . . . Kicked . | . . . . . Crushed . | . . . . . Highest Temperature 289 | . 20 . 164 289 Average Temperature 67 | . 12 . 47 86 Received Heat Transfer 537 | . . 120 54 363 Effects 1 | . . . . 1 Energy Bleed 1 | . . . . 1 Siege Activations . | . . . . . Robots Corrupted . | . . . . . Combat Hostiles . | . . . . . Parts Fried . | . . . . . Impact Corruptions . | . . . . . Robots Melted . | . . . . . Combat Hostiles . | . . . . . Parts Melted 3 | . . 1 . 2 Heat Transferred 2273 | . . 888 296 1089 Parts Sabotaged . | . . . . . Parts Stolen . | . . . . . Parts Stripped . | . . . . . Power Chain Reactions . | . . . . . Alert | -11 -10 -10 -8 -7 ------- Run | Yrd Mat Sub Mat Fac Peak Influence 389 | . 121 . 389 296 Initial 80 | . . . 80 63 Average 100 | . 21 . 165 138 Maximum Alert Level 1 | . . . 1 1 Low Security (%) 84 | 100 100 . 76 71 Level 1 15 | . . . 23 28 Level 2 . | . . . . . Level 3 . | . . . . . Level 4 . | . . . . . Level 5 . | . . . . . High Security . | . . . . . Max Security . | . . . . . Squads Dispatched 5 | . 1 . 1 3 Investigation . | . . . . . Extermination 2 | . . . . 2 Reinforcement 3 | . 1 . 1 1 Assault . | . . . . . Garrison . | . . . . . Intercept . | . . . . . Searches Triggered . | . . . . . Construction Impeded . | . . . . . Haulers Reinforced 1 | . . . . 1 Active Scanning Responses . | . . . . . Cargo Convoy Interrupts 1 | . . . . 1 Stealth | -11 -10 -10 -8 -7 --------- Run | Yrd Mat Sub Mat Fac Distress Signals 3 | . . . 3 . Communications Jammed . | . . . . . Distress Signals . | . . . . . Times Spotted 82 | . 10 12 26 34 Peak Tracking Total 13 | . 3 5 7 13 Tactical Retreats 2 | . . 1 . 1 Traps | -11 -10 -10 -8 -7 ------- Run | Yrd Mat Sub Mat Fac Traps Triggered 1 | . 1 . . . Indirectly . | . . . . . Trap Hack Attempts . | . . . . . Triggered . | . . . . . Disarmed . | . . . . . Reprogrammed . | . . . . . Reused . | . . . . . Traps Extracted . | . . . . . Installed . | . . . . . Triggered . | . . . . . Machines | -11 -10 -10 -8 -7 ---------- Run | Yrd Mat Sub Mat Fac Machines Disabled 11 | . 1 . 3 7 Max in Single Turn 3 | . 1 . 1 3 Garrison Access 1 | . . . 1 . Machines Repaired . | . . . . . Machines Dismantled . | . . . . . Machines Sabotaged . | . . . . . Overloaded Fab Kills . | . . . . . Hacking | -11 -10 -10 -8 -7 --------- Run | Yrd Mat Sub Mat Fac Machines Accessed 21 | . 7 . 11 3 Terminals 20 | . 7 . 10 3 Fabricators . | . . . . . Repair Stations . | . . . . . Recycling Units . | . . . . . Scanalyzers . | . . . . . Garrison Access 1 | . . . 1 . Total Hacks 56 | . 21 . 31 4 Successful 20 | . 9 . 11 . Failed 36 | . 12 . 20 4 Catastrophic 11 | . 2 . 7 2 Database Lockouts . | . . . . . Manual 24 | . 9 . 13 2 Terminals 54 | . 21 . 29 4 Fabricators . | . . . . . Repair Stations . | . . . . . Recycling Units . | . . . . . Scanalyzers . | . . . . . Garrison Access 2 | . . . 2 . Terminal Hacks 19 | . 9 . 10 . Branch Access Points 2 | . 1 . 1 . Emergency Access Points 3 | . 2 . 1 . Terminal Index 1 | . 1 . . . Alert Level 2 | . 1 . 1 . Unreport Threat 1 | . . . 1 . Locate Traps 3 | . 1 . 2 . Registered Components 1 | . 1 . . . Zone Layout 6 | . 2 . 4 . Fabricator Hacks . | . . . . . Repair Station Hacks . | . . . . . Recycling Unit Hacks . | . . . . . Scanalyzer . | . . . . . Garrison Access Hacks 1 | . . . 1 . Seal Access 1 | . . . 1 . Unauthorized Hacks . | . . . . . Terminals . | . . . . . Fabricators . | . . . . . Repair Stations . | . . . . . Recycling Units . | . . . . . Scanalyzers . | . . . . . Garrison Access . | . . . . . Data Cores Recovered . | . . . . . Used . | . . . . . Hacking Detections 18 | . 5 . 10 3 Full Trace Events . | . . . . . Feedback Events . | . . . . . Feedback Blocked . | . . . . . Robot Schematics Acquired . | . . . . . Robots Built . | . . . . . Authchips . | . . . . . Time . | . . . . . Total Robot Build Rating . | . . . . . Part Schematics Acquired . | . . . . . Parts Built . | . . . . . Authchips . | . . . . . Time . | . . . . . Total Part Build Rating . | . . . . . Parts Repaired . | . . . . . Time . | . . . . . Parts Recycled . | . . . . . Recycled Matter . | . . . . . Retrieved Matter . | . . . . . Retrieved Components . | . . . . . Parts Scanalyzed . | . . . . . Part Schematics Acquired . | . . . . . Parts Damaged . | . . . . . Bothacking | -11 -10 -10 -8 -7 ------------ Run | Yrd Mat Sub Mat Fac Used RIF Installer . | . . . . . Robots Hacked . | . . . . . Non-combat . | . . . . . Combat . | . . . . . Robot Hacks Applied . | . . . . . Relay Couplers Released 3 | . . . . 3 Programmers 3 | . . . . 3 Fabnet Peak Effective % . | . . . . . Robots Rewired . | . . . . . Allies Hacked . | . . . . . Hacks Repelled . | . . . . . Allies | -11 -10 -10 -8 -7 -------- Run | Yrd Mat Sub Mat Fac Total Allies . | . . . . . Largest Group . | . . . . . Highest-Rated Group . | . . . . . Highest-Rated Ally . | . . . . . Total Orders . | . . . . . Ally Attacks . | . . . . . Total Damage . | . . . . . Kills . | . . . . . Allies Corrupted . | . . . . . Allies Melted . | . . . . . Intel | -11 -10 -10 -8 -7 ------- Run | Yrd Mat Sub Mat Fac Robot Analysis Total . | . . . . . Derelict Logs Recovered . | . . . . . Drone Launches . | . . . . . Drone Recoveries . | . . . . . Exploration | -11 -10 -10 -8 -7 ------------- Run | Yrd Mat Sub Mat Fac Turns Passed 5430 | 75 1665 1119 1474 1097 Spaces Moved 2485 | 53 605 617 728 482 Core 8 | 8 . . . . Treads 2406 | . 600 617 728 461 Legs 50 | 45 5 . . . Wheels 21 | . . . . 21 Hover . | . . . . . Flight . | . . . . . Fastest Speed 50 | 50 120 160 160 130 Average Speed 158 | 115 159 160 160 158 Slowest Speed 160 | 150 160 160 160 160 Overloaded Moves . | . . . . . Propulsion Burnouts . | . . . . . Robots Hopped . | . . . . . Cave-ins Triggered . | . . . . . Exploration Rate (%) 46 | 5 97 35 75 19 Regions Visited 4 Branch Regions 1 Pre-discovered Areas 1 | . . 1 . . Known Exits Taken . | . . . . . Unknown Exits Taken 4 | 1 1 1 1 . Scrap Searched 1 | . . 1 . . Spaces Dug 29 | . . 12 17 . Terrain Destroyed 114 | . 1 52 36 25 Melee 2 | . . . 2 . Projectile 7 | . . . 5 2 AOE 105 | . 1 52 29 23 Terrain Rammed . | . . . . . Walls Destroyed . | . . . . . Machines Disabled . | . . . . . Actions | -11 -10 -10 -8 -7 --------- Run | Yrd Mat Sub Mat Fac Total 3666 | 64 1293 687 946 676 Wait 843 | . 634 8 120 81 Move 2481 | 52 604 616 727 482 Hop . | . . . . . Pick Up 43 | 6 17 5 10 5 Fast Attach 17 | 6 4 . 3 4 Attach 22 | . . 4 4 14 Detach 1 | . 1 . . . Swap 50 | . 8 12 18 12 Drop 40 | . 14 6 13 7 Fire 135 | . 9 36 48 42 Melee 32 | . . . 3 29 Ram . | . . . . . Kick . | . . . . . Crush 2 | . 2 . . . Escape Stasis . | . . . . . Rewire . | . . . . . Trap . | . . . . . Miscellaneous . | . . . . . Route ------- -11/Scrapyard -10/Materials (discovered 4 exits: [*Mat x2] / *Min / [*Sub]) -10/Subcaves -8/Materials (discovered 2 exits: *Fac / *Sto) -7/Factory History --------- Turn | Location | Event 13 | -11/Scrapyard | Discovered new exit (range 15) 76 | -11/Scrapyard | Entered Materials 340 | -10/Materials | Build established: Mutant 404 | -10/Materials | Discovered new exit (range 9) 910 | -10/Materials | Discovered new exit (range 6) 924 | -10/Materials | Identified exit to Mines 1707 | -10/Materials | Discovered new exit (range 7) 1741 | -10/Materials | Entered Subcaves 1774 | -10/Subcaves | Learned location of Zion (-7) 1774 | -10/Subcaves | Met a Zionite searching for "candidates" 2196 | -10/Subcaves | Shifting Twisted Machinery released Flamer 2394 | -10/Subcaves | Shifting Twisted Machinery released Mak. Light Armor Plating 2409 | -10/Subcaves | Shifting Twisted Machinery released Mak. System Shield 2414 | -10/Subcaves | Shifting Twisted Machinery released Battle Cannon 2586 | -10/Subcaves | Shifting Twisted Machinery released Sub. Monowheel 2633 | -10/Subcaves | Discovered new exit (range 8) 2860 | -10/Subcaves | Entered Materials 2860 | -8/Materials | Evolved 4 slots: Propulsion x1, Utility x2, Weapon x1 3339 | -8/Materials | Identified exit to Storage 3594 | -8/Materials | Build established: Scavenger-Tank 4329 | -8/Materials | Discovered new exit (range 4) 4334 | -8/Materials | Entered Factory 4334 | -7/Factory | Evolved 2 slots: Propulsion x1, Utility x1 4941 | -7/Factory | Build established: Mutant 5282 | -7/Factory | Lost 4 parts (3n1w) 5355 | -7/Factory | Cargo convoy interrupted 5412 | -7/Factory | Core integrity fell below 50% 5425 | -7/Factory | Core integrity fell below 20% 5430 | -7/Factory | System corruption reached 10% 5431 | -7/Factory | Destroyed by X-57 Shotgunner with High-powered Shotgun Last Messages --------------- 05418_ Welding Torch crushed. 05418_ P-60 Hacker resets P-60 Hacker, system corruption cleaned. 05419_ Slug penetrates H-55 Commando. 05419_ H-55 Commando destroyed. 05421_ K-01 Serf collects debris. 05421_ Slug penetrates H-55 Commando. 05421_ Penetrated by Slug. 05422_ K-01 Serf collects debris. 05422_ P-60 Hacker resets P-60 Hacker, system corruption cleaned. 05423_ P-60 Hacker destroyed. 05424_ K-01 Serf collects debris. 05426_ Nuclear Reactor explodes. 05426_ U-05 Engineer destroyed. 05426_ K-01 Serf collects debris. 05427_ Assault Rifle destroyed. 05427_ K-01 Serf collects debris. 05428_ H-55 Commando knocked back. 05428_ K-01 Serf collects debris. 05428_ Gauss Cannon destroyed. 05429_ K-01 Serf collects debris. Map ----- +----------------------------------------------------+ | ???????????????? #####!#??# ! #? | | ????????????????????""" ! %!#??#########? | | ???????????????# """ *|=#???????????? | | ???????????????+ """ * #???????????? | | ???????????????# !#???????????? | | ????????????????? """ #???????????? | | ??????????????## """ ####????????? | | ?????????????? " #????????? | | ???????????? " ! #????????? | | ???????????? " " == #????????? | | ???????????? " ! +????????? | | ??????????? "" =!* #????????? | | ???????????^ [= #????????? | | ???????????? "" % #????????? | | ????????????### "" ### ##????????? | | ??????????????# """ ! # # ##????????? | | ??????????????# ! # # #?????????? | | ??????????????# x ### #?????????? | | ??????????????# "" "" k #?# #?????????? | | ??????????????# "F "" % k #?# #?????????? | | ??????????????# """"" a #?# #?????????? | | ????????####### %! #?# #?????????? | | ????? ! #?? #?????????? | | ??????????####### # ###### #?????????? | | ????????????????## p p= p + +?????????? | | ????????????????#; k[%@ """" # #?????????? | | ????????????????## ## h """" #? ?????????????? | | ????????????????## #### # % """" #???????????????? | | ????????????????## ##?### ! """" #???????????????? | | ????????????????## # ???# """ #???????????????? | | ?????????????????#/###??# " "" #???????????????? | | ????????????????? ????# ! """" #???????????????? | | ????????????????? ""????# ????????????????? | | ????????????????# "" ???##########???????????????? | | ????????????????# "T ????????????????????????????? | | ????????????????# "" ???????????????????????????? | | ????????????????# "" %???????????????????????????? | | ????????????????# ??????????????????????????? | | ????????????????#%""" ??????????????????????????? | | ????????????????# ??" #?????????????????????????? | | ????????????????# ??? #?????????????????????????? | | ????????????????# ???? #?????????????????????????? | | ????????????????+ ???? #?????????????????????????? | | ????????????????# ???????????????????????????????? | | ????????????????#????????????????????????????????? | | ?????????????????????????????????????????????????? | | ?????????????????????????????????????????????????? | | ?????????????????????????????????????????????????? | | ?????????????????????????????????????????????????? | | ?????????????????????????????????????????????????? | +----------------------------------------------------+ Best States ------------- Heat Dissipation 34 Energy Generation 18 Energy Capacity 310 Matter Stores 300 Matter Capacity 300 Sight Range 20 Terrain Scan Density 10 Armor Coverage 800 Evasion (%) 55 Targeting Accuracy 5 Recoil Reduction 4 Item Schematics ----------------- None Robot Schematics ------------------ None Fabricated ------------ Nothing Alien Tech Used ----------------- None Achievements -------------- None Challenges ------------ None Game ------ Seed ScrapWaveSuperbattery Manual? 0 Play Time 00:51:08 Cumulative 116.1 hours Start 2024.05.06 @ 02:56:56 End 2024.05.06 @ 03:48:16 Sessions 1 Manual Loads 0 Difficulty Rogue Special Mode None Game No. 75 Rogue 75 Adventurer 0 Explorer 0 Win Type - Total 2 Types 2/0/0/0/0/0/0/0/0 Lore% 39 Gallery% 51 Achievement% 32 Wizard Run 0 Options --------- Layout 0 ASCII 0 Keyboard 0 Movement Numpad Keybinds 0 Fullscreen 1 Font 24/X11 Map View 76x50 Zoom Use 0% Tactical HUD 1 Map Filters NONE Filters NONE Steam 1 RUN: cc6648fc-ea38-40cd-bc53-b1d2d2911617